[Event "45th FIDE Olympiad 2024"]
[Site "Budapest"]
[Date "2024.09.18"]
[Round "7.53"]
[White "Garcia Pantoja, Roberto"]
[Black "Navara, David"]
[Result "1/2-1/2"]
[ECO "B13"]
[WhiteElo "2550"]
[BlackElo "2681"]
[Annotator "TA"]
[PlyCount "62"]
[EventDate "2024.09.05"]
[EventType "team-tourn"]
[EventCountry "HUN"]
[SourceTitle "playchess.com"]
[Source "ChessBase"]
[SourceQuality "1"]
[WhiteTeam "Colombia"]
[BlackTeam "Czech Republic"]
[WhiteTeamCountry "COL"]
[BlackTeamCountry "CZE"]
[TimeControl "40/5400+30:1800+30"]

{[%evp 20,62,7,6,14,12,8,10,6,0,0,0,17,18,16,22,25,0,0,0,0,0,0,0,14,7,13,7,12,18,12,6,10,4,5,2,4,4,4,0,0,0,0,0,0]} 1. e4 {[%emt 0:00:03]} c6 {[%emt 0:00:03]} 2. d4 {[%emt 0:00:11]} d5 {[%emt 0:00:05]} 3. exd5 {[%emt 0:00:13]} cxd5 {[%emt 0:00:08]} 4. Bd3 {[%emt 0:00:10]} Nc6 {[%emt 0:00:08]} 5. c3 {[%emt 0:00:07]} Nf6 {[%emt 0:00:07]} 6. Bf4 {[%emt 0:00:15]} Bg4 {[%emt 0:00:32]} 7. Nf3 {[%emt 0:01:14]} e6 {[%emt 0:09:01]} 8. h3 {[%emt 0:00:24]} Bxf3 {[%emt 0:01:40]} 9. Qxf3 {[%emt 0:00:08]} Bd6 {[%emt 0:00:09]} 10. Bxd6 {[%emt 0:00:06]} Qxd6 {[%emt 0:00:13]} 11. O-O {[%emt 0:00:06]} O-O {[%emt 0:00:37]} 12. Re1 {[%emt 0:00:06]} Rad8 {[%emt 0:06:54]} 13. Qe3 {[%emt 0:10:58]} Rfe8 {[%emt 0:16:01]} 14. f4 {[%emt 0:05:48]} Nh5 {[%emt 0:18:01]} 15. Rf1 {[%emt 0:06:53]} g6 {[%emt 0:04:52]} 16. Nd2 {[%emt 0:12:24]} f6 {[%emt 0:01:36]} 17. g4 {[%emt 0:11:04]} Ng7 {[%emt 0:00:13]} 18. Nf3 {[%emt 0:01:20]} e5 {[%emt 0:04:47] The position is equal.} 19. fxe5 {[%emt 0:01:09]} fxe5 {[%emt 0:00:12]} 20. Nxe5 {[%emt 0:05:17]} Nxe5 {[%emt 0:00:15]} 21. dxe5 {[%emt 0:00:06]} Qxe5 {[%emt 0:02:03]} 22. Qxe5 {[%emt 0:02:18]} (22. Qxa7 $2 {loses.} Qg3+ 23. Kh1 Qxh3+ (23... Qxd3 $2 24. Qf2 $19) 24. Kg1 Re3 $19 (24... Qxd3 $2 25. Qf2 $19) (24... Qxg4+ $2 25. Kh1 $19) (24... Qxd3 $2 25. Qf2 $19) (24... Qxg4+ $2 25. Kh1 $19)) 22... Rxe5 {[%emt 0:00:11]} 23. Rfe1 {[%emt 0:12:33]} Rde8 {[%emt 0:01:07]} 24. Rxe5 {[%emt 0:00:10]} Rxe5 $11 {[%emt 0:00:06][%mdl 4096] Endgame. KRB-KRN} 25. Kf2 {[%emt 0:00:19]} g5 {[%emt 0:04:25]} 26. h4 {[%emt 0:05:54]} gxh4 {[%emt 0:00:41]} 27. Rh1 {[%emt 0:00:05]} h5 {[%emt 0:00:38]} 28. Rxh4 {[%emt 0:00:09]} Kf7 {[%emt 0:01:16]} 29. gxh5 {[%emt 0:03:21]} Rxh5 {[%emt 0:00:15]} 30. Rxh5 {[%emt 0:03:11]} Nxh5 {[%emt 0:00:15]} 31. Ke3 {[%emt 0:00:32]} Ke6 {[%emt 0:00:25] A balanced but interesting game.   Weighted Error Value: White=0.02 (flawless) /Black=0.01 (flawless) .  OK:         	White=7     	Black=9      Best:        	---       	Black=1} 1/2-1/2

[Event "45th FIDE Olympiad 2024"]
[Site "Budapest"]
[Date "2024.09.18"]
[Round "7.53"]
[White "Ayyad, Husain"]
[Black "Murphy, Jones"]
[Result "1-0"]
[WhiteElo "2129"]
[BlackElo "2021"]
[PlyCount "23"]
[EventDate "2024.09.05"]
[EventType "team-tourn"]
[EventCountry "HUN"]
[WhiteTeam "Bahrain"]
[BlackTeam "Dominica"]
[WhiteTeamCountry "BHN"]
[TimeControl "40/5400+30:1800+30"]

1. e4 e5 2. Nf3 Nc6 3. d4 exd4 4. Bc4 Bc5 5. O-O d6 6. b4 Bxb4 7. Nxd4 Nxd4 8. Qxd4 Qf6 9. Bb5+ Kf8 10. Qxb4 Qxa1 11. Bb2 Qxa2 12. Bc4 1-0

[Event "45th FIDE Olympiad 2024"]
[Site "Budapest"]
[Date "2024.09.18"]
[Round "7.54"]
[White "Nguyen, Thai Dai Van"]
[Black "Cardoso Cardoso, Jose Gabriel"]
[Result "1/2-1/2"]
[ECO "C47"]
[WhiteElo "2647"]
[BlackElo "2508"]
[Annotator "RC"]
[PlyCount "118"]
[EventDate "2024.09.05"]
[EventType "team-tourn"]
[EventCountry "HUN"]
[SourceTitle "playchess.com"]
[Source "ChessBase"]
[SourceQuality "1"]
[WhiteTeam "Czech Republic"]
[BlackTeam "Colombia"]
[WhiteTeamCountry "CZE"]
[BlackTeamCountry "COL"]
[TimeControl "40/5400+30:1800+30"]

1. e4 {[%emt 0:00:04]} e5 {[%emt 0:00:07]} 2. Nf3 {[%emt 0:00:12]} Nf6 {[%emt 0:00:04]} 3. Nc3 {[%emt 0:05:55]} Nc6 {[%emt 0:00:44]} 4. d4 {[%emt 0:00:05]} exd4 {[%emt 0:00:35]} 5. Nxd4 {[%emt 0:00:07]} Bb4 {[%emt 0:00:18]} 6. Nxc6 {[%emt 0:00:08]} bxc6 {[%emt 0:00:06]} 7. Bd3 {[%emt 0:00:08]} d5 {[%emt 0:00:21]} 8. exd5 {[%emt 0:00:09]} O-O {[%emt 0:00:53]} 9. O-O {[%emt 0:00:15]} Bg4 {[%emt 0:00:26]} 10. f3 {[%emt 0:00:41]} Bh5 {[%emt 0:00:06]} 11. Bg5 {[%emt 0:09:59]} Qd6 {[%emt 0:00:24]} 12. Bxf6 {[%emt 0:18:46]} Qxf6 {[%emt 0:00:50]} 13. Ne4 {[%emt 0:00:10]} Qxb2 {[%emt 0:10:34]} 14. Rb1 {[%emt 0:03:45]} Qa3 {[%emt 0:01:13]} 15. dxc6 {[%emt 0:00:24]} Ba5 {[%emt 0:06:15]} 16. Bc4 {[%emt 0:06:42]} Rad8 {[%emt 0:04:16]} 17. Bd5 {[%emt 0:05:28]} Rfe8 {[%emt 0:05:45]} 18. Rb3 {[%emt 0:08:45]} Qf8 {[%emt 0:00:07]} 19. Rd3 {[%emt 0:01:18]} Kh8 {[%emt 0:00:05]} 20. c4 {[%emt 0:18:13]} f5 {[%emt 0:00:24]} 21. Ng3 {[%emt 0:00:02]} Bg6 {[%emt 0:00:11]} 22. f4 {[%emt 0:02:36]} Qc5+ {[%emt 0:03:19]} 23. Kh1 {[%emt 0:00:05]} Re7 {[%emt 0:00:43]} 24. Qb1 {[%emt 0:13:23]} h5 {[%emt 0:02:03]} 25. Bf3 {[%emt 0:04:43]} Rxd3 {[%emt 0:08:59]} 26. Qxd3 {[%emt 0:00:01]} h4 {[%emt 0:00:07]} 27. Ne2 {[%emt 0:00:03]} Bf7 {[%emt 0:00:06]} 28. Bd5 {[%emt 0:00:10]} Bxd5 {[%emt 0:03:06]} 29. cxd5 {[%emt 0:00:01]} Re4 {[%emt 0:00:07]} 30. Ng1 {[%emt 0:01:42]} Bb6 {[%emt 0:02:10]} 31. Nh3 {[%emt 0:00:43]} g6 {[%emt 0:00:59]} 32. Qf3 {[%emt 0:01:08]} Rc4 {[%emt 0:09:33]} 33. Qd1 {[%emt 0:00:37]} Qe3 {[%emt 0:07:29]} 34. Re1 {[%emt 0:00:25]} Qc3 {[%emt 0:00:19]} 35. Ng5 {[%emt 0:00:21]} Be3 {[%emt 0:02:57]} 36. Qe2 {[%emt 0:00:38]} Rxf4 {[%emt 0:01:33]} 37. d6 {[%emt 0:00:26]} cxd6 {[%emt 0:00:36]} 38. c7 {[%emt 0:00:28]} Rc4 {[%emt 0:00:24]} 39. Nf7+ {[%emt 0:00:09]} Kg8 {[%emt 0:00:38]} 40. Nxd6 {[%emt 0:00:27]} Rxc7 {[%emt 0:01:05]} 41. Nb5 {[%emt 0:03:23]} Qxe1+ {[%emt 0:00:05]} 42. Qxe1 {[%emt 0:00:02]} Rc1 {[%emt 0:00:06]} 43. Qxc1 {[%emt 0:00:02]} Bxc1 {[%emt 0:00:04]} 44. Nxa7 {[%emt 0:00:04]} Kf7 {[%emt 0:02:19]} 45. Nc6 {[%emt 0:10:03]} Ba3 {[%emt 0:02:22]} 46. Ne5+ {[%emt 0:00:50]} Kf6 {[%emt 0:00:24]} 47. Nf3 {[%emt 0:00:05]} g5 {[%emt 0:00:41]} 48. Kg1 {[%emt 0:00:05]} Bd6 {[%emt 0:06:17]} 49. a4 {[%emt 0:02:31]} Bc7 {[%emt 0:01:25]} 50. Kf2 {[%emt 0:06:45]} h3 {[%emt 0:03:08]} 51. gxh3 {[%emt 0:03:55]} g4 {[%emt 0:00:05]} 52. hxg4 {[%emt 0:00:41]} fxg4 {[%emt 0:00:05]} 53. Nd2 {[%emt 0:00:07]} Bxh2 {[%emt 0:00:17]} 54. Ne4+ {[%emt 0:00:06]} Ke5 {[%emt 0:01:12]} 55. Ng3 {[%emt 0:00:08]} Bxg3+ {[%emt 0:00:23]} 56. Kxg3 {[%emt 0:00:06]} Kd4 {[%emt 0:00:07]} 57. Kxg4 {[%emt 0:00:07]} Kc5 {[%emt 0:00:04]} 58. Kf4 {[%emt 0:00:06]} Kb4 {[%emt 0:00:06]} 59. Ke4 {[%emt 0:00:03]} Kxa4 {[%emt 0:00:06]} 1/2-1/2

[Event "45th FIDE Olympiad 2024"]
[Site "Budapest"]
[Date "2024.09.18"]
[Round "7.54"]
[White "Bridet, Robert"]
[Black "Ayyad, Maher"]
[Result "0-1"]
[WhiteElo "1697"]
[BlackElo "1980"]
[PlyCount "92"]
[EventDate "2024.09.05"]
[EventType "team-tourn"]
[EventCountry "HUN"]
[WhiteTeam "Dominica"]
[BlackTeam "Bahrain"]
[BlackTeamCountry "BHN"]
[TimeControl "40/5400+30:1800+30"]

1. e4 c5 2. Nf3 e6 3. b3 Nc6 4. Bb2 d6 5. Bb5 Bd7 6. O-O Nf6 7. Re1 Be7 8. e5 Nxe5 9. Bxd7+ Nexd7 10. d4 O-O 11. Nbd2 b5 12. a3 Rb8 13. Qe2 Qc7 14. Rac1 c4 15. c3 cxb3 16. Nxb3 Nb6 17. Nbd2 d5 18. h3 Na4 19. Nf1 Nxb2 20. Qxb2 Qa5 21. Ra1 Rfc8 22. Rec1 Ne4 23. N3d2 Nxd2 24. Nxd2 Bg5 25. g3 Bxd2 26. Qxd2 Rc4 27. Ra2 Rbc8 28. Rb2 Qxa3 29. Rxb5 Rxd4 30. Qxd4 Qxc1+ 31. Kg2 h6 32. Rb7 Qxc3 33. Qxa7 Qf6 34. Rd7 Rd8 35. Re7 d4 36. Qc7 Rd5 37. Qc8+ Kh7 38. Qf8 d3 39. Rxf7 Qxf7 40. Qxf7 d2 41. Qxe6 Rd8 42. Qf5+ Kh8 43. h4 d1=Q 44. Qf4 Qd4 45. Qc1 Qe4+ 46. Kg1 Qf3 {0-} 0-1

[Event "45th FIDE Olympiad 2024"]
[Site "Budapest"]
[Date "2024.09.18"]
[Round "7.55"]
[White "Avila Pavas, Santiago"]
[Black "Zilka, Stepan"]
[Result "1/2-1/2"]
[ECO "C47"]
[WhiteElo "2485"]
[BlackElo "2574"]
[Annotator "TA"]
[PlyCount "118"]
[EventDate "2024.09.05"]
[EventType "team-tourn"]
[EventCountry "HUN"]
[SourceTitle "playchess.com"]
[Source "ChessBase"]
[SourceQuality "1"]
[WhiteTeam "Colombia"]
[BlackTeam "Czech Republic"]
[WhiteTeamCountry "COL"]
[BlackTeamCountry "CZE"]
[TimeControl "40/5400+30:1800+30"]

{[%evp 58,118,27,30,43,44,30,0,47,13,187,149,123,147,170,0,0,0,0,0,0,0,0,0,0,0,0,0,0,0,0,0,0,0,0,0,0,0,0,0,0,0,0,0,8,8,8,8,8,8,8,0,0,0,0,0,0,0,0,0,0,0,0]} 1. e4 {[%emt 0:00:04]} e5 {[%emt 0:00:07]} 2. Nf3 {[%emt 0:00:12]} Nf6 {[%emt 0:00:04]} 3. Nc3 {[%emt 0:05:55]} Nc6 {[%emt 0:00:44]} 4. d4 {[%emt 0:00:05]} exd4 {[%emt 0:00:35]} 5. Nxd4 {[%emt 0:00:07]} Bb4 {[%emt 0:00:18]} 6. Nxc6 {[%emt 0:00:08]} bxc6 {[%emt 0:00:06]} 7. Bd3 {[%emt 0:00:08]} d5 {[%emt 0:00:21]} 8. exd5 {[%emt 0:00:09]} O-O {[%emt 0:00:53]} 9. O-O {[%emt 0:00:15]} Bg4 {[%emt 0:00:26]} 10. f3 {[%emt 0:00:41]} Bh5 {[%emt 0:00:06]} 11. Bg5 {[%emt 0:09:59]} Qd6 {[%emt 0:00:24]} 12. Bxf6 {[%emt 0:18:46]} Qxf6 {[%emt 0:00:50]} 13. Ne4 {[%emt 0:00:10]} Qxb2 {[%emt 0:10:34]} 14. Rb1 {[%emt 0:03:45]} Qa3 {[%emt 0:01:13]} 15. dxc6 {[%emt 0:00:24]} Ba5 {[%emt 0:06:15]} 16. Bc4 {[%emt 0:06:42]} Rad8 {[%emt 0:04:16]} 17. Bd5 {[%emt 0:05:28]} Rfe8 {[%emt 0:05:45]} 18. Rb3 {[%emt 0:08:45]} Qf8 {[%emt 0:00:07]} 19. Rd3 {[%emt 0:01:18]} Kh8 {[%emt 0:00:05]} 20. c4 {[%emt 0:18:13]} f5 {[%emt 0:00:24]} 21. Ng3 {[%emt 0:00:02]} Bg6 {[%emt 0:00:11]} 22. f4 {[%emt 0:02:36]} Qc5+ {[%emt 0:03:19]} 23. Kh1 {[%emt 0:00:05]} Re7 {[%emt 0:00:43]} 24. Qb1 {[%emt 0:13:23]} h5 {[%emt 0:02:03]} 25. Bf3 {[%emt 0:04:43]} Rxd3 {[%emt 0:08:59]} 26. Qxd3 {[%emt 0:00:01]} h4 {[%emt 0:00:07]} 27. Ne2 {[%emt 0:00:03]} Bf7 {[%emt 0:00:06]} 28. Bd5 {[%emt 0:00:10]} Bxd5 {[%emt 0:03:06]} 29. cxd5 {[%emt 0:00:01]} Re4 {[%emt 0:00:07]} 30. Ng1 {[%emt 0:01:42]} Bb6 {[%emt 0:02:10]} 31. Nh3 {[%emt 0:00:43]} g6 $1 {[%emt 0:00:59]} 32. Qf3 {[%emt 0:01:08]} Rc4 {[%emt 0:09:33]} (32... Qxd5 $6 33. Ng5 Rd4 34. Qf2 $16) (32... Qb4 $11) 33. Qd1 {[%emt 0:00:37]} Qe3 $2 {[%emt 0:07:29]} (33... Rc2 $1 $11) 34. Re1 {[%emt 0:00:25]} Qc3 {[%emt 0:00:19] [#]} 35. Ng5 $1 {[%emt 0:00:21]} Be3 {[%emt 0:02:57] [#]} 36. Qe2 $2 {[%emt 0:00:38]} (36. g3 $1 $18 {Qe2 would now be deadly.} Kg7 37. Qe2 (37. gxh4 Bxf4 38. Re7+ Kf8 $11)) 36... Rxf4 $1 $11 {[%emt 0:01:33]} 37. d6 {[%emt 0:00:26]} (37. Qxe3 $2 Qxe3 (37... Rf1+ $2 38. Rxf1 Qxe3 39. d6 $19) 38. Rg1 Rc4 $19) (37. h3 $5 Rf2 $8 38. Qxe3 Rf1+ 39. Rxf1 Qxe3 40. d6 cxd6 (40... Qxg5 41. dxc7 Kg7 42. c8=Q Qf6 43. c7 Kh6 44. Qd8 Qe6 45. Qxh4+ Kg7 46. Re1) 41. Rb1 $11 (41. c7 Qc3 $11)) 37... cxd6 {[%emt 0:00:36]} 38. c7 {[%emt 0:00:28]} (38. Qxe3 Qxe3 (38... Qxc6 39. Qxa7) 39. Ra1 Rc4 40. Nh3 Rxc6 (40... Rc1+ $2 41. Rxc1 Qxc1+ 42. Ng1 $19) 41. Ng1 Rc2 42. Nh3 Qd2 (42... Rc1+ 43. Rxc1 Qxc1+ 44. Ng1 h3 45. gxh3 Qf1 46. h4 f4 47. h5 f3 48. hxg6 Qg2#) 43. Rg1 Rxa2) (38. h3 $5 Rf2 $8 39. Qxe3 Rf1+ 40. Rxf1 Qxe3 41. Rb1 $11 (41. c7 Qc3 $11)) 38... Rc4 $1 {[%emt 0:00:24]} 39. Nf7+ $1 {[%emt 0:00:09]} (39. Qxe3 $2 Qxe3 (39... Rxc7 $2 40. Qe8+ Kg7 41. Ne6+ Kh6 42. Qf8+ Kh5 43. Nf4+ Kg5 44. Qd8+ Kh6 45. Qxh4+ Kg7 46. Ne6+ Kg8 47. Nxc7 $18) 40. Nf3 Qc3 $19 (40... Qxe1+ $2 41. Nxe1 Rxc7 42. Kg1 $19)) 39... Kg8 {[%emt 0:00:38]} 40. Nxd6 {[%emt 0:00:27]} (40. Qxe3 Qxe3 (40... Kxf7 41. Qe6+ Kg7 42. Qe7+ Kh6 43. c8=Q $11) 41. Rg1 Kxf7 (41... Rxc7 {leads to mate.} 42. Nh6+ Qxh6 43. h3 Rc2 44. Kh2 Qf4+ 45. Kh1 Qg3 46. a3 a5 47. a4 Kh7 48. Rf1 Qxg2#) 42. h3 Rxc7 43. Rd1 Rc2 44. Rb1 Qg3 (44... Rxa2 45. Rb7+ Kf6 46. Rc7 Qe1+ 47. Kh2 Qg3+ 48. Kh1 Qxg2#) (44... Rc1+ 45. Rxc1 Qxc1+ 46. Kh2 Qf1 47. g4 f4 48. a3 f3 49. g5 Qg2#) 45. Rb7+ Kf6) 40... Rxc7 {[%emt 0:01:05]} 41. Nb5 $1 {[%emt 0:03:23]} (41. Qxe3 {gets mated.} Qxe3 42. Rd1 Rc1 43. h3 Rxd1+ 44. Kh2 Qg3#) 41... Qxe1+ $1 {[%emt 0:00:05]} 42. Qxe1 {[%emt 0:00:02]} Rc1 {[%emt 0:00:06]} 43. Qxc1 $1 {[%emt 0:00:02]} Bxc1 {[%emt 0:00:04]} 44. Nxa7 {[%emt 0:00:04]} Kf7 {[%emt 0:02:19]} 45. Nc6 {[%emt 0:10:03]} Ba3 {[%emt 0:02:22]} 46. Ne5+ {[%emt 0:00:50]} Kf6 {[%emt 0:00:24]} 47. Nf3 {[%emt 0:00:05]} g5 {[%emt 0:00:41]} 48. Kg1 {[%emt 0:00:05]} Bd6 {[%emt 0:06:17]} 49. a4 {[%emt 0:02:31]} Bc7 {[%emt 0:01:25]} 50. Kf2 {[%emt 0:06:45]} h3 {[%emt 0:03:08]} 51. gxh3 {[%emt 0:03:55]} g4 {[%emt 0:00:05]} 52. hxg4 {[%emt 0:00:41]} fxg4 {[%emt 0:00:05]} 53. Nd2 {[%emt 0:00:07]} Bxh2 {[%emt 0:00:17]} 54. Ne4+ {[%emt 0:00:06]} Ke5 {[%emt 0:01:12]} 55. Ng3 {[%emt 0:00:08]} Bxg3+ {[%emt 0:00:23]} 56. Kxg3 {[%emt 0:00:06]} Kd4 {[%emt 0:00:07]} 57. Kxg4 {[%emt 0:00:07]} Kc5 {[%emt 0:00:04]} 58. Kf4 {[%emt 0:00:06]} Kb4 {[%emt 0:00:06]} 59. Ke4 {[%emt 0:00:03]} Kxa4 {[%emt 0:00:06]} 1/2-1/2

[Event "45th FIDE Olympiad 2024"]
[Site "Budapest"]
[Date "2024.09.18"]
[Round "7.55"]
[White "Monther, Alfardan"]
[Black "Thomas, Larry"]
[Result "1/2-1/2"]
[WhiteElo "1834"]
[BlackElo "1686"]
[PlyCount "50"]
[EventDate "2024.09.05"]
[EventType "team-tourn"]
[EventCountry "HUN"]
[WhiteTeam "Bahrain"]
[BlackTeam "Dominica"]
[WhiteTeamCountry "BHN"]
[TimeControl "40/5400+30:1800+30"]

1. e4 e5 2. Nf3 Nc6 3. Bc4 Be7 4. O-O d6 5. c3 Nf6 6. Re1 O-O 7. h3 Na5 8. Bd3 c5 9. Bc2 c4 10. b3 b5 11. b4 Nb7 12. a4 Bd7 13. axb5 Bxb5 14. d3 cxd3 15. Bxd3 Bxd3 16. Qxd3 Qc7 17. Bg5 Rfc8 18. Rc1 h6 19. Bxf6 Bxf6 20. Nbd2 a5 21. Qd5 Qc6 22. Qd3 Qc7 23. Qd5 Qc6 24. Qd3 Qc7 25. Qd5 Qc6 1/2-1/2

[Event "45th FIDE Olympiad 2024"]
[Site "Budapest"]
[Date "2024.09.18"]
[Round "7.56"]
[White "Vykouk, Jan"]
[Black "Valderrama Quiceno, Esteban Alb"]
[Result "1-0"]
[ECO "B11"]
[WhiteElo "2483"]
[BlackElo "2418"]
[Annotator "TA"]
[PlyCount "101"]
[EventDate "2024.09.05"]
[EventType "team-tourn"]
[EventCountry "HUN"]
[SourceTitle "playchess.com"]
[Source "ChessBase"]
[SourceQuality "1"]
[WhiteTeam "Czech Republic"]
[BlackTeam "Colombia"]
[WhiteTeamCountry "CZE"]
[BlackTeamCountry "COL"]
[TimeControl "40/5400+30:1800+30"]

{[%evp 13,101,17,25,22,27,17,18,22,29,27,31,26,39,20,25,16,31,37,42,42,39,33,31,42,33,38,46,34,73,53,75,87,71,83,147,59,112,95,127,95,164,168,181,166,169,52,142,0,161,0,173,156,144,156,158,99,177,194,184,171,194,136,311,306,398,408,353,335,335,335,663,651,704,669,848,804,904,1161,1033,999,1384,1377,29953,29937,29986,29987,29995,29996,29996,1147]} 1. e4 {[%emt 0:00:03]} c6 {[%emt 0:03:12]} 2. Nf3 {[%emt 0:00:16]} d5 {[%emt 0:00:39]} 3. Nc3 {[%emt 0:00:07]} Bg4 {[%emt 0:05:20]} 4. h3 {[%emt 0:00:07]} Bxf3 {[%emt 0:01:02]} 5. Qxf3 {[%emt 0:00:05]} e6 {[%emt 0:00:14]} 6. Be2 {[%emt 0:00:28]} Nf6 {[%emt 0:00:39]} 7. O-O {[%emt 0:03:09]} Nbd7 {[%emt 0:02:08]} 8. d4 {[%emt 0:05:18]} dxe4 {[%emt 0:05:39]} 9. Nxe4 {[%emt 0:00:14]} Nxe4 {[%emt 0:01:54]} 10. Qxe4 {[%emt 0:00:06] The position is equal.} Be7 {[%emt 0:02:55]} 11. c4 {[%emt 0:04:43]} O-O {[%emt 0:03:49]} 12. Be3 {[%emt 0:01:32]} Nf6 {[%emt 0:01:40]} 13. Qc2 {[%emt 0:00:45]} Rc8 {[%emt 0:03:09]} 14. Rfd1 {[%emt 0:01:56]} b5 {[%emt 0:05:30]} 15. b3 {[%emt 0:03:11]} Qa5 {[%emt 0:01:03]} 16. a4 {[%emt 0:04:04]} bxc4 {[%emt 0:07:53]} 17. bxc4 {[%emt 0:01:13]} Rfd8 {[%emt 0:05:43]} 18. Rab1 {[%emt 0:01:52]} Rd7 {[%emt 0:01:26]} 19. Bf3 {[%emt 0:04:05]} h6 {[%emt 0:14:17]} 20. g3 {[%emt 0:03:55]} Qa6 {[%emt 0:04:34]} 21. Rb2 {[%emt 0:09:33]} Ba3 {[%emt 0:03:42]} 22. Rb3 {[%emt 0:02:10]} Bf8 {[%emt 0:00:08]} 23. Rdb1 {[%emt 0:01:49]} Ne8 {[%emt 0:04:07]} (23... Re8 $142) 24. g4 {[%emt 0:32:24]} (24. c5 $16) 24... Rdd8 {[%emt 0:07:05]} (24... Qxa4 $14 25. R1b2 Nd6) 25. Qc3 {[%emt 0:00:46]} Be7 {[%emt 0:01:39][%cal Oe7f6]} 26. Bg2 {[%emt 0:02:07] Strongly threatening c5.} Bf6 {[%emt 0:00:43]} (26... Qxa4 $2 {too greedy.} 27. Ra1 $18) (26... Rc7 $16) 27. c5 $1 $18 {[%emt 0:01:24] Bf1 would now be deadly.} Rc7 {[%emt 0:02:40]} 28. Rb8 {[%emt 0:01:28]} Rcc8 {[%emt 0:02:34]} 29. R8b7 {[%emt 0:07:11]} (29. Rxc8 $1 $18 Qxc8 30. Qa5) 29... Rc7 {[%emt 0:04:07]} ({Black should try} 29... Nc7 $14) 30. Rb8 {[%emt 0:05:34] White has more active pieces.} Rcc8 $1 {[%emt 0:00:08]} 31. R8b3 {[%emt 0:00:22] aiming for Bf1.} Rc7 $1 {[%emt 0:01:09]} 32. Bf1 {[%emt 0:01:05]} Qc8 {[%emt 0:00:05] [#]} 33. Rb8 $1 {[%emt 0:00:34][%mdl 512]} Qd7 {[%emt 0:00:37]} 34. Rxd8 {[%emt 0:00:19]} ({White should play} 34. a5 $1) 34... Qxd8 {[%emt 0:00:24]} (34... Bxd8 $16 35. Qb2 Bg5) 35. Bf4 $1 {[%emt 0:01:27]} Rc8 {[%emt 0:02:18] [#]} 36. Ba6 $1 $36 {[%emt 0:00:09][%mdl 2048] White has strong initiative.} Bxd4 {[%emt 0:02:05] [#]} 37. Qf3 {[%emt 0:00:11]} (37. Qd2 $1 $18 g5 (37... Ra8 $2 38. Bb7 $18) 38. Bg3 (38. Bxc8 gxf4 39. Bb7 Qd5 $18) 38... Bxc5 39. Qc2) 37... e5 $2 {[%emt 0:01:59] This move loses the game for Black.} (37... Rc7 $16) 38. Bxc8 {[%emt 0:00:07]} Qxc8 {[%emt 0:00:17]} 39. Be3 {[%emt 0:00:12]} Nf6 {[%emt 0:00:52]} 40. Bxd4 {[%emt 0:00:26]} exd4 {[%emt 0:00:00][%mdl 4096] Endgame. KQR-KQN} 41. Qf4 {[%emt 0:30:33]} Nd7 {[%emt 0:30:42] Prevents Rb8} (41... Qd7 42. Qd6 d3) 42. Qxd4 {[%emt 0:00:56]} h5 {[%emt 0:00:16]} 43. Qd6 {[%emt 0:02:57]} hxg4 {[%emt 0:00:26]} 44. hxg4 {[%emt 0:00:11]} Nf8 {[%emt 0:00:12]} 45. f3 {[%emt 0:00:52]} Nd7 {[%emt 0:00:00] Dodges Rb8} 46. a5 {[%emt 0:00:00]} Kh7 {[%emt 0:00:00]} 47. Kf2 {[%emt 0:00:00]} Nf6 {[%emt 0:00:00]} 48. Rh1+ {[%emt 0:00:00] White mates.} Kg6 {[%emt 0:00:00]} 49. Qd3+ {[%emt 0:00:00]} Kg5 {[%emt 0:00:00] [#]} 50. f4+ $1 {[%emt 0:00:00]} Kxf4 {[%emt 0:00:00]} 51. Qe3+ {[%emt 0:00:00] Weighted Error Value: White=0.20 (precise) /Black=0.45.  Loses game:     	---       	Black=1      Mistake:       	White=4     	Black=6      Inaccurate:     	---       	Black=3      OK:         	White=13    	Black=8      Strong:       	White=3     	Black=2      Brilliant:      	White=1     	---} 1-0

[Event "45th FIDE Olympiad 2024"]
[Site "Budapest"]
[Date "2024.09.18"]
[Round "7.56"]
[White "Francis, Nigel"]
[Black "Shaker, Musab"]
[Result "0-1"]
[WhiteElo "1775"]
[BlackElo "1757"]
[PlyCount "72"]
[EventDate "2024.09.05"]
[EventType "team-tourn"]
[EventCountry "HUN"]
[WhiteTeam "Dominica"]
[BlackTeam "Bahrain"]
[BlackTeamCountry "BHN"]
[TimeControl "40/5400+30:1800+30"]

1. e4 e5 2. Nf3 Nf6 3. Nxe5 d6 4. Nf3 Nxe4 5. Nc3 Nxc3 6. dxc3 Be7 7. Be3 O-O 8. Qd2 c6 9. O-O-O Nd7 10. h3 d5 11. g4 Nc5 12. Kb1 Ne4 13. Qc1 b5 14. Bd3 Nc5 15. Be2 a5 16. Nd4 Bd7 17. f4 b4 18. c4 a4 19. Nf5 Bxf5 20. gxf5 b3 21. cxb3 axb3 22. a3 Ne4 23. Bf3 Qa5 24. Bxe4 Bxa3 25. Rd3 dxe4 26. Rxb3 Be7 27. Qc3 Qa1+ 28. Kc2 Qxh1 29. Qd2 Rfd8 30. Qe2 Qf3 31. Qxf3 exf3 32. Bf2 Bf6 33. Rxf3 Rdb8 34. b3 h6 35. Bc5 Ra2+ 36. Kc1 Re8 {0-} 0-1